[Event "*** Titled Tuesday Blitz"]
[Site "Chess.com"]
[Date "2020.05.12"]
[Round "1"]
[White "zane33"]
[Black "ENEASZ"]
[Result "0-1"]
[WhiteElo "1919"]
[BlackElo "2475"]
[TimeControl "180+1"]
[EndTime "10:07:57 PDT"]
[Termination "ENEASZ won on time"]

1. e4 {[%clk 0:03:00.5]} 1... d6 {[%clk 0:03:00.1]} 2. d4 {[%clk 0:02:59.7]}
2... Nf6 {[%clk 0:03:00]} 3. Nd2 {[%clk 0:02:57.2]} 3... e5 {[%clk 0:02:59.2]}
4. c3 {[%clk 0:02:56.8]} 4... g6 {[%clk 0:02:58.1]} 5. Bd3 {[%clk 0:02:56.1]}
5... Bg7 {[%clk 0:02:58]} 6. Ne2 {[%clk 0:02:56]} 6... O-O {[%clk 0:02:58.1]} 7.
O-O {[%clk 0:02:55.4]} 7... Re8 {[%clk 0:02:58.4]} 8. Bc2 {[%clk 0:02:47.1]}
8... Nc6 {[%clk 0:02:56.2]} 9. d5 {[%clk 0:02:32.6]} 9... Ne7 {[%clk 0:02:54.8]}
10. Ng3 {[%clk 0:02:22.9]} 10... c6 {[%clk 0:02:45.4]} 11. dxc6 {[%clk
0:02:21.5]} 11... Nxc6 {[%clk 0:02:43.4]} 12. Nc4 {[%clk 0:02:17.2]} 12... Be6
{[%clk 0:02:29.6]} 13. Ne3 {[%clk 0:02:10.1]} 13... Rc8 {[%clk 0:02:25]} 14. h3
{[%clk 0:02:00.1]} 14... a6 {[%clk 0:02:19.2]} 15. Bb3 {[%clk 0:01:53.7]} 15...
Na5 {[%clk 0:02:13.7]} 16. Bxe6 {[%clk 0:01:50.3]} 16... fxe6 {[%clk 0:02:14.6]}
17. Qe2 {[%clk 0:01:34.9]} 17... Qb6 {[%clk 0:02:07.4]} 18. Rd1 {[%clk
0:01:32.3]} 18... Red8 {[%clk 0:01:56.4]} 19. b4 {[%clk 0:01:25.8]} 19... Nc6
{[%clk 0:01:51.8]} 20. Nc4 {[%clk 0:01:25.6]} 20... Qc7 {[%clk 0:01:51.1]} 21.
Be3 {[%clk 0:01:21.8]} 21... Nb8 {[%clk 0:01:35]} 22. Nb6 {[%clk 0:01:18.7]}
22... Nbd7 {[%clk 0:01:30.7]} 23. Nxc8 {[%clk 0:01:17.7]} 23... Rxc8 {[%clk
0:01:30.9]} 24. Rac1 {[%clk 0:01:16.5]} 24... d5 {[%clk 0:01:26.3]} 25. Bd2
{[%clk 0:00:57.5]} 25... Nb6 {[%clk 0:01:22]} 26. c4 {[%clk 0:00:40.9]} 26...
Nxc4 {[%clk 0:01:20.2]} 27. Bc3 {[%clk 0:00:35.2]} 27... d4 {[%clk 0:01:17.8]}
28. Ba1 {[%clk 0:00:35]} 28... b5 {[%clk 0:01:17.8]} 29. Nf1 {[%clk 0:00:32.5]}
29... Bh6 {[%clk 0:01:15.4]} 30. Rc2 {[%clk 0:00:25.4]} 30... Qb7 {[%clk
0:01:15.5]} 31. Bxd4 {[%clk 0:00:19.1]} 31... exd4 {[%clk 0:01:13.2]} 32. Rxd4
{[%clk 0:00:19.7]} 32... e5 {[%clk 0:01:09.7]} 33. Rd3 {[%clk 0:00:18.5]} 33...
Qxe4 {[%clk 0:01:07.2]} 34. Qxe4 {[%clk 0:00:18.6]} 34... Nxe4 {[%clk
0:01:08.1]} 35. Rd7 {[%clk 0:00:16.6]} 35... Rc6 {[%clk 0:00:59.1]} 36. Ne3
{[%clk 0:00:16.1]} 36... Bxe3 {[%clk 0:00:55.6]} 37. fxe3 {[%clk 0:00:15.7]}
37... Nf6 {[%clk 0:00:54.4]} 38. Re7 {[%clk 0:00:15.2]} 38... Kf8 {[%clk
0:00:53.4]} 39. Ra7 {[%clk 0:00:14.6]} 39... Ke8 {[%clk 0:00:48.3]} 40. Rf2
{[%clk 0:00:14.8]} 40... e4 {[%clk 0:00:42.9]} 41. Ra8+ {[%clk 0:00:15.1]} 41...
Ke7 {[%clk 0:00:41.7]} 42. Ra7+ {[%clk 0:00:16]} 42... Nd7 {[%clk 0:00:41.8]}
43. Re2 {[%clk 0:00:11.6]} 43... Nd6 {[%clk 0:00:35.5]} 44. Rd2 {[%clk
0:00:11.7]} 44... Ke6 {[%clk 0:00:33.7]} 45. Rd4 {[%clk 0:00:11.6]} 45... Nf6
{[%clk 0:00:30.8]} 46. Ra8 {[%clk 0:00:11.6]} 46... Nf5 {[%clk 0:00:29.9]} 47.
Rdd8 {[%clk 0:00:10.8]} 47... Nxe3 {[%clk 0:00:29.7]} 48. Rdb8 {[%clk
0:00:07.3]} 48... Rc2 {[%clk 0:00:26.3]} 49. Kh2 {[%clk 0:00:07.8]} 49... Rxg2+
{[%clk 0:00:25.3]} 50. Kh1 {[%clk 0:00:08.7]} 50... Nh5 {[%clk 0:00:24.2]} 51.
Rxa6+ {[%clk 0:00:09.1]} 51... Kd5 {[%clk 0:00:23.7]} 52. Rd8+ {[%clk
0:00:09.4]} 52... Kc4 {[%clk 0:00:24]} 53. Rc6+ {[%clk 0:00:08.9]} 53... Kxb4
{[%clk 0:00:24.4]} 54. Rd4+ {[%clk 0:00:09]} 54... Ka5 {[%clk 0:00:24.9]} 55.
Ra6+ {[%clk 0:00:02.4]} 55... Kxa6 {[%clk 0:00:24.8]} 56. Rd6+ {[%clk
0:00:02.6]} 56... Ka5 {[%clk 0:00:24.9]} 0-1

[Event "*** Titled Tuesday Blitz"]
[Site "Chess.com"]
[Date "2020.05.12"]
[Round "1"]
[White "manmanlai1"]
[Black "cassoulet"]
[Result "0-1"]
[WhiteElo "2336"]
[BlackElo "2660"]
[TimeControl "180+1"]
[EndTime "10:07:58 PDT"]
[Termination "cassoulet won on time"]

1. e4 {[%clk 0:02:56.8]} 1... c5 {[%clk 0:02:56.1]} 2. Nf3 {[%clk 0:02:56.4]}
2... Nc6 {[%clk 0:02:55.3]} 3. Bb5 {[%clk 0:02:55.7]} 3... Nd4 {[%clk
0:02:52.6]} 4. Nxd4 {[%clk 0:02:55.1]} 4... cxd4 {[%clk 0:02:53.5]} 5. O-O
{[%clk 0:02:55.1]} 5... Nf6 {[%clk 0:02:53.4]} 6. d3 {[%clk 0:02:55.1]} 6... g6
{[%clk 0:02:52.2]} 7. Bc4 {[%clk 0:02:54.4]} 7... d5 {[%clk 0:02:38.9]} 8. exd5
{[%clk 0:02:18.6]} 8... Bg7 {[%clk 0:02:34.1]} 9. Re1 {[%clk 0:02:03]} 9... O-O
{[%clk 0:02:25]} 10. Bg5 {[%clk 0:01:58.1]} 10... Nxd5 {[%clk 0:02:14.7]} 11.
Bxd5 {[%clk 0:01:56.1]} 11... Qxd5 {[%clk 0:02:15.6]} 12. Bxe7 {[%clk
0:01:55.2]} 12... Re8 {[%clk 0:02:15.4]} 13. Nd2 {[%clk 0:01:52]} 13... Bh3
{[%clk 0:01:41]} 14. Qf3 {[%clk 0:01:11.9]} 14... Qxf3 {[%clk 0:01:23.2]} 15.
Nxf3 {[%clk 0:01:12.8]} 15... Be6 {[%clk 0:01:23.6]} 16. Bc5 {[%clk 0:01:03.7]}
16... Rec8 {[%clk 0:01:22.4]} 17. Bxd4 {[%clk 0:01:02.6]} 17... Rxc2 {[%clk
0:01:22]} 18. Bxg7 {[%clk 0:01:02.2]} 18... Kxg7 {[%clk 0:01:22.9]} 19. Nd4
{[%clk 0:01:01.3]} 19... Rxb2 {[%clk 0:01:21.2]} 20. Nxe6+ {[%clk 0:01:01.1]}
20... fxe6 {[%clk 0:01:22.1]} 21. Rxe6 {[%clk 0:01:01.3]} 21... Rf8 {[%clk
0:01:21.1]} 22. f3 {[%clk 0:00:51.4]} 22... Rd8 {[%clk 0:01:20.5]} 23. Re3
{[%clk 0:00:45.3]} 23... Rc8 {[%clk 0:01:20]} 24. Kh1 {[%clk 0:00:37.4]} 24...
Rcc2 {[%clk 0:01:19.1]} 25. Rg1 {[%clk 0:00:37.9]} 25... Kf7 {[%clk 0:01:12.4]}
26. a4 {[%clk 0:00:37.2]} 26... Ra2 {[%clk 0:01:11.5]} 27. Re4 {[%clk
0:00:37.3]} 27... Rd2 {[%clk 0:01:10.3]} 28. Rd4 {[%clk 0:00:32.2]} 28... Ke7
{[%clk 0:01:05.7]} 29. h4 {[%clk 0:00:32]} 29... Re2 {[%clk 0:01:01.9]} 30. Kh2
{[%clk 0:00:31.5]} 30... b6 {[%clk 0:01:00.7]} 31. Kh3 {[%clk 0:00:30.5]} 31...
Kf6 {[%clk 0:00:56.5]} 32. h5 {[%clk 0:00:29.8]} 32... gxh5 {[%clk 0:00:54.6]}
33. Kh4 {[%clk 0:00:23.5]} 33... Rxg2 {[%clk 0:00:52]} 34. Rxg2 {[%clk
0:00:23.3]} 34... Rxg2 {[%clk 0:00:52.9]} 35. Kxh5 {[%clk 0:00:23.8]} 35... Kf5
{[%clk 0:00:46.7]} 36. Rd5+ {[%clk 0:00:19.5]} 36... Kf4 {[%clk 0:00:39.4]} 37.
Rd4+ {[%clk 0:00:15.1]} 37... Kf5 {[%clk 0:00:27.3]} 38. Rd5+ {[%clk 0:00:14.5]}
38... Ke6 {[%clk 0:00:27.7]} 39. Rd4 {[%clk 0:00:13.5]} 39... a5 {[%clk
0:00:21.8]} 40. Rf4 {[%clk 0:00:08.7]} 40... Ke5 {[%clk 0:00:19.5]} 41. Rf8
{[%clk 0:00:07.9]} 41... Kd4 {[%clk 0:00:19.5]} 42. Rb8 {[%clk 0:00:07.3]} 42...
Rb2 {[%clk 0:00:16.6]} 43. Rd8+ {[%clk 0:00:05.8]} 43... Ke3 {[%clk 0:00:16.5]}
44. Kh6 {[%clk 0:00:06.2]} 44... Rh2+ {[%clk 0:00:15.2]} 45. Kg7 {[%clk
0:00:06]} 45... Kxf3 {[%clk 0:00:16.1]} 46. d4 {[%clk 0:00:05.8]} 46... Ke4
{[%clk 0:00:16]} 47. d5 {[%clk 0:00:06.3]} 47... Rd2 {[%clk 0:00:16.2]} 48. d6
{[%clk 0:00:06.2]} 48... Kd5 {[%clk 0:00:15]} 49. d7 {[%clk 0:00:05.9]} 49...
Kc6 {[%clk 0:00:15.1]} 50. Rc8+ {[%clk 0:00:01.6]} 50... Kxd7 {[%clk 0:00:14.8]}
51. Rc4 {[%clk 0:00:02.3]} 51... Rh2 {[%clk 0:00:14.2]} 0-1

[Event "*** Titled Tuesday Blitz"]
[Site "Chess.com"]
[Date "2020.05.12"]
[Round "1"]
[White "fidezivkovic"]
[Black "Y0ung_Capablanca"]
[Result "0-1"]
[WhiteElo "2364"]
[BlackElo "2703"]
[TimeControl "180+1"]
[EndTime "10:07:59 PDT"]
[Termination "Y0ung_Capablanca won on time"]

1. e4 {[%clk 0:02:57.9]} 1... Nf6 {[%clk 0:02:56.9]} 2. e5 {[%clk 0:02:56.9]}
2... Nd5 {[%clk 0:02:54.2]} 3. d4 {[%clk 0:02:57]} 3... d6 {[%clk 0:02:54]} 4.
c4 {[%clk 0:02:56.7]} 4... Nb6 {[%clk 0:02:53.8]} 5. exd6 {[%clk 0:02:56.8]}
5... cxd6 {[%clk 0:02:54.1]} 6. Nc3 {[%clk 0:02:55.9]} 6... g6 {[%clk
0:02:54.5]} 7. Be3 {[%clk 0:02:53.3]} 7... Bg7 {[%clk 0:02:54.3]} 8. Rc1 {[%clk
0:02:53.3]} 8... O-O {[%clk 0:02:54.7]} 9. Be2 {[%clk 0:02:44.3]} 9... Nc6
{[%clk 0:02:54]} 10. d5 {[%clk 0:02:43.3]} 10... Ne5 {[%clk 0:02:51.7]} 11. b3
{[%clk 0:02:42.4]} 11... f5 {[%clk 0:02:50.4]} 12. f4 {[%clk 0:02:41.6]} 12...
Ng4 {[%clk 0:02:50.1]} 13. Bxg4 {[%clk 0:02:40.9]} 13... fxg4 {[%clk 0:02:51]}
14. Nge2 {[%clk 0:02:40.7]} 14... Nd7 {[%clk 0:02:48.5]} 15. O-O {[%clk
0:02:36]} 15... Nf6 {[%clk 0:02:48.2]} 16. Nd4 {[%clk 0:02:29.7]} 16... Bd7
{[%clk 0:02:40.6]} 17. Qd2 {[%clk 0:02:28.4]} 17... Nh5 {[%clk 0:02:29]} 18. g3
{[%clk 0:02:22.7]} 18... Qa5 {[%clk 0:02:27]} 19. Rfe1 {[%clk 0:02:19.1]} 19...
Rae8 {[%clk 0:02:23.9]} 20. Bf2 {[%clk 0:02:10.2]} 20... a6 {[%clk 0:02:22.2]}
21. Re2 {[%clk 0:02:06.9]} 21... Bf6 {[%clk 0:02:19]} 22. Rce1 {[%clk
0:02:00.1]} 22... Ng7 {[%clk 0:02:17.5]} 23. Ne4 {[%clk 0:01:51]} 23... Qxd2
{[%clk 0:02:16.2]} 24. Rxd2 {[%clk 0:01:48.9]} 24... Kf7 {[%clk 0:02:12.4]} 25.
Rde2 {[%clk 0:01:40.9]} 25... h6 {[%clk 0:02:06.6]} 26. a4 {[%clk 0:01:13.4]}
26... Bxd4 {[%clk 0:02:03.2]} 27. Bxd4 {[%clk 0:01:12]} 27... Nf5 {[%clk
0:02:03.6]} 28. Bf2 {[%clk 0:01:03.8]} 28... Rc8 {[%clk 0:01:48.7]} 29. a5
{[%clk 0:01:01.7]} 29... Rfe8 {[%clk 0:01:47.8]} 30. Nc3 {[%clk 0:00:46.6]}
30... Rg8 {[%clk 0:01:36.2]} 31. Ne4 {[%clk 0:00:40.7]} 31... Rce8 {[%clk
0:01:21.5]} 32. Bb6 {[%clk 0:00:38.8]} 32... e6 {[%clk 0:01:16.2]} 33. dxe6+
{[%clk 0:00:37]} 33... Rxe6 {[%clk 0:01:16.6]} 34. Nf2 {[%clk 0:00:29.1]} 34...
Rxe2 {[%clk 0:00:47.1]} 35. Rxe2 {[%clk 0:00:28.1]} 35... Ne7 {[%clk 0:00:47.6]}
36. Ne4 {[%clk 0:00:23.4]} 36... Nc8 {[%clk 0:00:47.2]} 37. Bc7 {[%clk
0:00:21.7]} 37... Re8 {[%clk 0:00:46.3]} 38. Kf2 {[%clk 0:00:19.3]} 38... Re6
{[%clk 0:00:45.9]} 39. Nc3 {[%clk 0:00:14]} 39... Bc6 {[%clk 0:00:46.3]} 40. Nd5
{[%clk 0:00:11.3]} 40... Rxe2+ {[%clk 0:00:36.1]} 41. Kxe2 {[%clk 0:00:10.6]}
41... Ke6 {[%clk 0:00:36.7]} 42. Ne3 {[%clk 0:00:08.6]} 42... Bf3+ {[%clk
0:00:32.8]} 43. Kd3 {[%clk 0:00:07.9]} 43... Kd7 {[%clk 0:00:33.2]} 44. Bb8
{[%clk 0:00:05]} 44... Kc6 {[%clk 0:00:31.3]} 45. b4 {[%clk 0:00:03.8]} 45... h5
{[%clk 0:00:22.7]} 46. f5 {[%clk 0:00:03]} 46... gxf5 {[%clk 0:00:21.2]} 47.
Nxf5 {[%clk 0:00:02.5]} 47... Kd7 {[%clk 0:00:19.2]} 48. Kd4 {[%clk 0:00:01.1]}
48... Bd1 {[%clk 0:00:16.1]} 0-1

[Event "*** Titled Tuesday Blitz"]
[Site "Chess.com"]
[Date "2020.05.12"]
[Round "1"]
[White "szefru"]
[Black "Malev212"]
[Result "0-1"]
[WhiteElo "2106"]
[BlackElo "2505"]
[TimeControl "180+1"]
[EndTime "10:07:59 PDT"]
[Termination "Malev212 won by resignation"]

1. e4 {[%clk 0:02:59.3]} 1... e6 {[%clk 0:02:58]} 2. d4 {[%clk 0:02:58.4]} 2...
d5 {[%clk 0:02:55.1]} 3. Nd2 {[%clk 0:02:56.6]} 3... a6 {[%clk 0:02:51.3]} 4. e5
{[%clk 0:02:41.4]} 4... c5 {[%clk 0:02:49.2]} 5. c3 {[%clk 0:02:40.7]} 5... Bd7
{[%clk 0:02:48.9]} 6. f4 {[%clk 0:02:40]} 6... Nh6 {[%clk 0:02:46.6]} 7. Bd3
{[%clk 0:02:37]} 7... Bb5 {[%clk 0:02:44.1]} 8. Bxb5+ {[%clk 0:02:26.9]} 8...
axb5 {[%clk 0:02:42.5]} 9. Ne2 {[%clk 0:02:27.2]} 9... b4 {[%clk 0:02:39.3]} 10.
O-O {[%clk 0:02:25]} 10... bxc3 {[%clk 0:02:36.5]} 11. bxc3 {[%clk 0:02:25.9]}
11... Nc6 {[%clk 0:02:35.6]} 12. Qb3 {[%clk 0:02:21.4]} 12... Qd7 {[%clk
0:02:27.8]} 13. Rb1 {[%clk 0:02:18.4]} 13... Na5 {[%clk 0:02:19.3]} 14. Qc2
{[%clk 0:02:14.7]} 14... Be7 {[%clk 0:02:15.9]} 15. Ng3 {[%clk 0:02:13.1]} 15...
Rc8 {[%clk 0:02:05]} 16. Qd3 {[%clk 0:02:12.1]} 16... g6 {[%clk 0:02:01]} 17.
Qb5 {[%clk 0:01:55.2]} 17... Qxb5 {[%clk 0:01:17.3]} 18. Rxb5 {[%clk 0:01:56.1]}
18... Nc6 {[%clk 0:01:14.3]} 19. Nf3 {[%clk 0:01:37.9]} 19... cxd4 {[%clk
0:01:11.6]} 20. cxd4 {[%clk 0:01:37]} 20... Rc7 {[%clk 0:01:09.1]} 21. Bd2
{[%clk 0:01:31.8]} 21... Kd7 {[%clk 0:01:08.3]} 22. Rfb1 {[%clk 0:01:30.7]}
22... Ra8 {[%clk 0:01:06.1]} 23. R1b2 {[%clk 0:01:08.6]} 23... Ra7 {[%clk
0:01:05.1]} 24. h3 {[%clk 0:00:51.3]} 24... Nf5 {[%clk 0:00:55.1]} 25. Nxf5
{[%clk 0:00:50.9]} 25... gxf5 {[%clk 0:00:54.6]} 26. Kf2 {[%clk 0:00:51.2]}
26... Ra3 {[%clk 0:00:53.3]} 27. g4 {[%clk 0:00:50.7]} 27... Rxf3+ {[%clk
0:00:51.5]} 28. Kxf3 {[%clk 0:00:49.9]} 28... Nxd4+ {[%clk 0:00:52.1]} 29. Kg3
{[%clk 0:00:44.4]} 29... Nxb5 {[%clk 0:00:53]} 30. Rxb5 {[%clk 0:00:45]} 30...
fxg4 {[%clk 0:00:51.5]} 31. hxg4 {[%clk 0:00:44.7]} 31... Rc2 {[%clk 0:00:50.9]}
32. Bb4 {[%clk 0:00:42.8]} 32... Bxb4 {[%clk 0:00:48.6]} 33. Rxb4 {[%clk
0:00:43.7]} 33... Kc6 {[%clk 0:00:48.1]} 34. a4 {[%clk 0:00:43.5]} 34... Rc4
{[%clk 0:00:46.3]} 35. Rb1 {[%clk 0:00:38.1]} 35... Rxa4 {[%clk 0:00:45.2]} 36.
Rh1 {[%clk 0:00:38.8]} 36... Ra3+ {[%clk 0:00:45.3]} 37. Kf2 {[%clk 0:00:38.5]}
37... b5 {[%clk 0:00:43.5]} 38. Rxh7 {[%clk 0:00:38.3]} 38... Ra7 {[%clk
0:00:44.1]} 39. g5 {[%clk 0:00:37.7]} 39... Rb7 {[%clk 0:00:43.7]} 40. Rh1
{[%clk 0:00:34.9]} 40... b4 {[%clk 0:00:42.8]} 41. Ke3 {[%clk 0:00:35]} 41... b3
{[%clk 0:00:41.9]} 42. Rb1 {[%clk 0:00:34.3]} 42... b2 {[%clk 0:00:41.5]} 43.
Kd3 {[%clk 0:00:34.4]} 43... Rb4 {[%clk 0:00:40.2]} 44. Ke3 {[%clk 0:00:34.1]}
44... Kc5 {[%clk 0:00:39.9]} 45. f5 {[%clk 0:00:32.4]} 45... exf5 {[%clk
0:00:37]} 46. Kd3 {[%clk 0:00:32]} 46... d4 {[%clk 0:00:34.4]} 47. e6 {[%clk
0:00:32]} 47... fxe6 {[%clk 0:00:33]} 48. g6 {[%clk 0:00:32.5]} 48... Rb3+
{[%clk 0:00:32.8]} 49. Ke2 {[%clk 0:00:31.5]} 49... Rg3 {[%clk 0:00:33.2]} 50.
Rxb2 {[%clk 0:00:31.7]} 50... Rxg6 {[%clk 0:00:33.7]} 51. Rc2+ {[%clk
0:00:31.9]} 51... Kd5 {[%clk 0:00:33.4]} 52. Rc8 {[%clk 0:00:31.8]} 52... e5
{[%clk 0:00:33.2]} 53. Rd8+ {[%clk 0:00:31.9]} 53... Ke4 {[%clk 0:00:32.9]} 54.
Rf8 {[%clk 0:00:31.1]} 54... Ra6 {[%clk 0:00:33.1]} 55. Rb8 {[%clk 0:00:28.1]}
55... Ra2+ {[%clk 0:00:31.9]} 56. Kd1 {[%clk 0:00:26.2]} 56... f4 {[%clk
0:00:32.8]} 57. Rb3 {[%clk 0:00:25.5]} 57... f3 {[%clk 0:00:32.2]} 58. Ke1
{[%clk 0:00:24.6]} 58... Kf4 {[%clk 0:00:30.5]} 59. Kf1 {[%clk 0:00:23.7]} 59...
e4 {[%clk 0:00:30.3]} 60. Rb8 {[%clk 0:00:22.8]} 60... d3 {[%clk 0:00:30]} 0-1

[Event "*** Titled Tuesday Blitz"]
[Site "Chess.com"]
[Date "2020.05.12"]
[Round "1"]
[White "Berant"]
[Black "Fins0905"]
[Result "1-0"]
[WhiteElo "2345"]
[BlackElo "2608"]
[TimeControl "180+1"]
[EndTime "10:08:00 PDT"]
[Termination "Berant won by resignation"]

1. e4 {[%clk 0:02:54.7]} 1... c5 {[%clk 0:02:59.1]} 2. d4 {[%clk 0:02:54.8]}
2... cxd4 {[%clk 0:02:58.9]} 3. Nf3 {[%clk 0:02:55]} 3... e6 {[%clk 0:02:56.2]}
4. Nxd4 {[%clk 0:02:54.2]} 4... a6 {[%clk 0:02:54.6]} 5. Nc3 {[%clk 0:02:53.5]}
5... Qc7 {[%clk 0:02:52.9]} 6. Be2 {[%clk 0:02:52.1]} 6... Nf6 {[%clk
0:02:52.4]} 7. O-O {[%clk 0:02:51.3]} 7... Be7 {[%clk 0:02:49.4]} 8. Kh1 {[%clk
0:02:49.8]} 8... d6 {[%clk 0:02:43.4]} 9. f4 {[%clk 0:02:49.4]} 9... Nbd7 {[%clk
0:02:44]} 10. Be3 {[%clk 0:02:45]} 10... b5 {[%clk 0:02:43.4]} 11. Bf3 {[%clk
0:02:42.2]} 11... Bb7 {[%clk 0:02:43.2]} 12. a3 {[%clk 0:02:37.9]} 12... Nc5
{[%clk 0:02:28.8]} 13. e5 {[%clk 0:01:59.1]} 13... dxe5 {[%clk 0:02:22.5]} 14.
fxe5 {[%clk 0:01:59.1]} 14... Nfd7 {[%clk 0:02:22]} 15. Bxb7 {[%clk 0:01:57.8]}
15... Qxb7 {[%clk 0:02:20.3]} 16. Qg4 {[%clk 0:01:54.9]} 16... g6 {[%clk
0:02:00.1]} 17. Bg5 {[%clk 0:01:41.3]} 17... Nxe5 {[%clk 0:01:24.4]} 18. Qf4
{[%clk 0:01:40.3]} 18... Bd6 {[%clk 0:00:56.1]} 19. Qf6 {[%clk 0:01:32.6]} 19...
Rg8 {[%clk 0:00:40.6]} 20. Nf3 {[%clk 0:01:11.2]} 20... Ncd7 {[%clk 0:00:16.1]}
21. Qf4 {[%clk 0:01:07.1]} 21... Nxf3 {[%clk 0:00:14.8]} 22. Qxd6 {[%clk
0:01:05.7]} 22... Nxg5 {[%clk 0:00:14.8]} 23. Rad1 {[%clk 0:01:01.7]} 23... Rc8
{[%clk 0:00:11.8]} 24. Nd5 {[%clk 0:00:55.9]} 24... exd5 {[%clk 0:00:08]} 25.
Rfe1+ {[%clk 0:00:50.6]} 25... Ne4 {[%clk 0:00:07.4]} 26. Rxd5 {[%clk
0:00:51.1]} 26... f5 {[%clk 0:00:06.4]} 27. Qe6+ {[%clk 0:00:49.2]} 27... Kd8
{[%clk 0:00:06.4]} 28. Qxg8+ {[%clk 0:00:48.8]} 28... Kc7 {[%clk 0:00:07]} 29.
Qe6 {[%clk 0:00:40.7]} 29... Rd8 {[%clk 0:00:07.2]} 30. h3 {[%clk 0:00:22.6]}
30... Qc6 {[%clk 0:00:07.5]} 31. Qf7 {[%clk 0:00:20.3]} 31... h5 {[%clk
0:00:06.4]} 32. Kh2 {[%clk 0:00:18.7]} 32... h4 {[%clk 0:00:06.8]} 33. Red1
{[%clk 0:00:18.4]} 33... Kc8 {[%clk 0:00:07.3]} 34. Qe7 {[%clk 0:00:16.7]} 34...
Qc7+ {[%clk 0:00:07.4]} 35. Kg1 {[%clk 0:00:16]} 35... Qa7+ {[%clk 0:00:07.4]}
36. Kh2 {[%clk 0:00:15.8]} 36... Qc7+ {[%clk 0:00:07.4]} 37. Kg1 {[%clk
0:00:15.8]} 37... Nec5 {[%clk 0:00:04.7]} 38. R1d4 {[%clk 0:00:15.3]} 38... Ne4
{[%clk 0:00:04.1]} 39. b4 {[%clk 0:00:15.1]} 39... Qc6 {[%clk 0:00:04.1]} 40.
Qf7 {[%clk 0:00:13.7]} 40... Kc7 {[%clk 0:00:04.4]} 41. Qe7 {[%clk 0:00:12.1]}
41... Kc8 {[%clk 0:00:04.8]} 42. Qf7 {[%clk 0:00:12.2]} 42... Kc7 {[%clk
0:00:05.3]} 43. Qe7 {[%clk 0:00:10.7]} 43... Nf6 {[%clk 0:00:05.4]} 44. Rc5
{[%clk 0:00:09.8]} 44... Re8 {[%clk 0:00:02.8]} 45. Rxc6+ {[%clk 0:00:09.4]}
45... Kxc6 {[%clk 0:00:03.7]} 46. Qd6+ {[%clk 0:00:09.9]} 46... Kb7 {[%clk
0:00:04.2]} 47. Rd1 {[%clk 0:00:06.7]} 47... Re4 {[%clk 0:00:03.4]} 48. Qd2
{[%clk 0:00:05.8]} 48... Kc7 {[%clk 0:00:03.1]} 49. Qf2 {[%clk 0:00:06.1]} 49...
Kc6 {[%clk 0:00:02.6]} 50. Re1 {[%clk 0:00:06.1]} 50... Rxe1+ {[%clk 0:00:02.1]}
51. Qxe1 {[%clk 0:00:07]} 51... Kd5 {[%clk 0:00:02.2]} 52. Qe7 {[%clk
0:00:06.8]} 52... Ne5 {[%clk 0:00:01.6]} 53. Qd8+ {[%clk 0:00:06.1]} 1-0

[Event "*** Titled Tuesday Blitz"]
[Site "Chess.com"]
[Date "2020.05.12"]
[Round "1"]
[White "not_najdorfs_player"]
[Black "Gajuchess"]
[Result "0-1"]
[WhiteElo "2376"]
[BlackElo "2714"]
[TimeControl "180+1"]
[EndTime "10:08:01 PDT"]
[Termination "Gajuchess won by resignation"]

1. e4 {[%clk 0:03:00.4]} 1... c5 {[%clk 0:02:57.5]} 2. Nf3 {[%clk 0:03:00.4]}
2... e6 {[%clk 0:02:57.7]} 3. d4 {[%clk 0:03:00.3]} 3... cxd4 {[%clk 0:02:58.6]}
4. Nxd4 {[%clk 0:02:59.8]} 4... a6 {[%clk 0:02:59]} 5. Bd3 {[%clk 0:02:59.5]}
5... Bc5 {[%clk 0:02:58.8]} 6. Nb3 {[%clk 0:02:58.6]} 6... Be7 {[%clk
0:02:59.2]} 7. O-O {[%clk 0:02:58]} 7... d6 {[%clk 0:02:59]} 8. c4 {[%clk
0:02:58.1]} 8... Nf6 {[%clk 0:02:58.7]} 9. Nc3 {[%clk 0:02:58]} 9... Nbd7 {[%clk
0:02:59.2]} 10. f4 {[%clk 0:02:53.7]} 10... Qc7 {[%clk 0:02:58.4]} 11. Qe2
{[%clk 0:02:51.2]} 11... b6 {[%clk 0:02:57.9]} 12. Bd2 {[%clk 0:02:50.7]} 12...
Bb7 {[%clk 0:02:57.5]} 13. Rae1 {[%clk 0:02:49.6]} 13... O-O {[%clk 0:02:54.3]}
14. Kh1 {[%clk 0:02:49.6]} 14... g6 {[%clk 0:02:47]} 15. Nd4 {[%clk 0:02:48.2]}
15... Nc5 {[%clk 0:02:29.3]} 16. Bb1 {[%clk 0:02:46.3]} 16... e5 {[%clk
0:02:29.4]} 17. fxe5 {[%clk 0:02:02.1]} 17... dxe5 {[%clk 0:02:30.3]} 18. Nf3
{[%clk 0:02:02.5]} 18... Rfe8 {[%clk 0:02:20.1]} 19. Nd5 {[%clk 0:01:54]} 19...
Nxd5 {[%clk 0:02:17.1]} 20. exd5 {[%clk 0:01:53.7]} 20... Bd6 {[%clk 0:01:59]}
21. Ng5 {[%clk 0:01:43.8]} 21... Re7 {[%clk 0:01:36.3]} 22. Qf2 {[%clk
0:01:35.1]} 22... f5 {[%clk 0:01:20.2]} 23. b4 {[%clk 0:01:28]} 23... Nd7 {[%clk
0:01:20.1]} 24. Rc1 {[%clk 0:01:20.9]} 24... e4 {[%clk 0:01:15.3]} 25. Ne6
{[%clk 0:01:16.1]} 25... Rxe6 {[%clk 0:01:15.1]} 26. dxe6 {[%clk 0:01:16.2]}
26... Nf8 {[%clk 0:01:10.4]} 27. c5 {[%clk 0:00:59.6]} 27... bxc5 {[%clk
0:01:09.2]} 28. bxc5 {[%clk 0:00:59.8]} 28... Be5 {[%clk 0:00:33.2]} 29. a4
{[%clk 0:00:46.1]} 29... Nxe6 {[%clk 0:00:29.7]} 30. Ba2 {[%clk 0:00:44.6]}
30... Re8 {[%clk 0:00:30.1]} 31. c6 {[%clk 0:00:41.6]} 31... Bc8 {[%clk
0:00:25.4]} 32. Qc5 {[%clk 0:00:38.2]} 32... Bxh2 {[%clk 0:00:23.5]} 33. Ba5
{[%clk 0:00:20.6]} 33... Qg3 {[%clk 0:00:23.1]} 34. Qc3 {[%clk 0:00:18.6]} 34...
Qh4 {[%clk 0:00:20.4]} 35. Qh3 {[%clk 0:00:19]} 35... Qxh3 {[%clk 0:00:20.4]}
36. gxh3 {[%clk 0:00:19.3]} 36... Be5 {[%clk 0:00:17.8]} 37. Rcd1 {[%clk
0:00:18.7]} 37... Kg7 {[%clk 0:00:17.4]} 38. Kg2 {[%clk 0:00:12.7]} 38... Nd4
{[%clk 0:00:15.1]} 39. Bc3 {[%clk 0:00:11]} 39... Nxc6 {[%clk 0:00:14.4]} 40.
Bxe5+ {[%clk 0:00:10.3]} 40... Nxe5 {[%clk 0:00:15.3]} 41. Rc1 {[%clk
0:00:10.5]} 41... Be6 {[%clk 0:00:13.5]} 42. Rc7+ {[%clk 0:00:10.3]} 42... Kf6
{[%clk 0:00:13.6]} 43. Bxe6 {[%clk 0:00:09]} 43... Rxe6 {[%clk 0:00:14.5]} 44.
Rxh7 {[%clk 0:00:08.9]} 44... Nd3 {[%clk 0:00:14.2]} 45. Rd1 {[%clk 0:00:07.6]}
45... e3 {[%clk 0:00:11.4]} 46. Rxd3 {[%clk 0:00:03.1]} 46... e2 {[%clk
0:00:11.6]} 47. Rh8 {[%clk 0:00:01.9]} 47... e1=Q {[%clk 0:00:11.6]} 48. Rf8+
{[%clk 0:00:02.6]} 48... Kg5 {[%clk 0:00:11.7]} 0-1